[Event "Titled Tuesday Blitz March 07 Late 2023"]
[White "Jesusesmifuerza"]
[Black "Sarkar, Justin"]
[BlackFideId "2010011"]
[WhiteElo "2055"]
[BlackElo "2189"]
[Result "1/2-1/2"]
[Round "06"]
[TimeControl "180+2"]
[Date "2023.03.07"]
[WhiteClock "0:00:36"]
[BlackClock "0:00:01"]

1. d4 {[%clk 0:03:00]}  Nf6 {[%clk 0:02:52]} 2. Bg5 {[%clk 0:03:00]}  h6 {[%clk 0:02:34]} 3. Bxf6 {[%clk 0:03:00]}  exf6 {[%clk 0:02:34]} 4. c4 {[%clk 0:03:00]}  Bb4+ {[%clk 0:02:28]} 5. Nc3 {[%clk 0:03:00]}  Bxc3+ {[%clk 0:02:26]} 6. bxc3 {[%clk 0:03:01]}  O-O {[%clk 0:02:24]} 7. e3 {[%clk 0:02:53]}  d6 {[%clk 0:02:23]} 8. Bd3 {[%clk 0:02:52]}  c5 {[%clk 0:02:17]} 9. h3 {[%clk 0:02:43]}  Nc6 {[%clk 0:02:14]} 10. Nf3 {[%clk 0:02:42]}  Qa5 {[%clk 0:02:04]} 11. Qd2 {[%clk 0:02:38]}  b6 {[%clk 0:01:53]} 12. Be4 {[%clk 0:02:22]}  Bb7 {[%clk 0:01:50]} 13. O-O {[%clk 0:02:13]}  Qa4 {[%clk 0:01:40]} 14. Bd5 {[%clk 0:02:04]}  Rad8 {[%clk 0:01:35]} 15. Rfc1 {[%clk 0:01:56]}  Na5 {[%clk 0:01:19]} 16. Qc2 {[%clk 0:01:39]}  Qxc2 {[%clk 0:01:02]} 17. Rxc2 {[%clk 0:01:40]}  Bxd5 {[%clk 0:01:02]} 18. cxd5 {[%clk 0:01:38]}  f5 {[%clk 0:00:57]} 19. Nd2 {[%clk 0:01:25]}  Rc8 {[%clk 0:00:49]} 20. Rac1 {[%clk 0:01:21]}  Rc7 {[%clk 0:00:38]} 21. c4 {[%clk 0:01:16]}  Rfc8 {[%clk 0:00:34]} 22. Nb3 {[%clk 0:01:08]}  cxd4 {[%clk 0:00:22]} 23. Nxa5 {[%clk 0:00:59]}  d3 {[%clk 0:00:14]} 24. Rc3 {[%clk 0:00:53]}  bxa5 {[%clk 0:00:06]} 25. Kf1 {[%clk 0:00:46]}  d2 {[%clk 0:00:06]} 26. Rd1 {[%clk 0:00:46]}  Rxc4 {[%clk 0:00:06]} 27. Rxc4 {[%clk 0:00:47]}  Rxc4 {[%clk 0:00:05]} 28. Rxd2 {[%clk 0:00:48]}  Kf8 {[%clk 0:00:04]} 29. Ke2 {[%clk 0:00:48]}  Ke7 {[%clk 0:00:03]} 30. Kd3 {[%clk 0:00:46]}  Ra4 {[%clk 0:00:03]} 31. Rb2 {[%clk 0:00:43]}  Kf6 {[%clk 0:00:02]} 32. g3 {[%clk 0:00:41]}  Ke5 {[%clk 0:00:01]} 33. f4+ {[%clk 0:00:38]}  Kxd5 {[%clk 0:00:02]} 34. Rb5+ {[%clk 0:00:39]}  Ke6 {[%clk 0:00:02]} 35. Rb2 {[%clk 0:00:39]}  Ra3+ {[%clk 0:00:02]} 36. Ke2 {[%clk 0:00:39]}  a4 {[%clk 0:00:02]} 37. Kf3 {[%clk 0:00:40]}  a5 {[%clk 0:00:02]} 38. g4 {[%clk 0:00:41]}  Rc3 {[%clk 0:00:01]} 39. gxf5+ {[%clk 0:00:39]}  Kxf5 {[%clk 0:00:01]} 40. Rb5+ {[%clk 0:00:40]}  Ke6 {[%clk 0:00:01]} 41. Rxa5 {[%clk 0:00:40]}  Ra3 {[%clk 0:00:02]} 42. Ra8 {[%clk 0:00:38]}  Rxa2 {[%clk 0:00:02]} 43. Re8+ {[%clk 0:00:39]}  Kd7 {[%clk 0:00:02]} 44. Rf8 {[%clk 0:00:39]}  Ke7 {[%clk 0:00:02]} 45. Rg8 {[%clk 0:00:40]}  g6 {[%clk 0:00:01]} 46. Ra8 {[%clk 0:00:40]}  a3 {[%clk 0:00:01]} 47. h4 {[%clk 0:00:40]}  Ra1 {[%clk 0:00:01]} 48. Ra4 {[%clk 0:00:40]}  Ke6 {[%clk 0:00:01]} 49. Ra5 {[%clk 0:00:39]}  f5 {[%clk 0:00:01]} 50. Ra4 {[%clk 0:00:37]}  Kd7 {[%clk 0:00:01]} 51. Ra5 {[%clk 0:00:37]}  Kc6 {[%clk 0:00:01]} 52. Ra4 {[%clk 0:00:37]}  Kb5 {[%clk 0:00:01]} 53. Ra8 {[%clk 0:00:37]}  Kb4 {[%clk 0:00:01]} 54. Rb8+ {[%clk 0:00:37]}  Kc3 {[%clk 0:00:01]} 55. Rc8+ {[%clk 0:00:37]}  Kb3 {[%clk 0:00:02]} 56. Rb8+ {[%clk 0:00:37]}  Ka2 {[%clk 0:00:02]} 57. e4 {[%clk 0:00:35]}  Rb1 {[%clk 0:00:02]} 58. Ra8 {[%clk 0:00:33]}  Rb3+ {[%clk 0:00:02]} 59. Ke2 {[%clk 0:00:33]}  fxe4 {[%clk 0:00:02]} 60. Ra6 {[%clk 0:00:32]}  Kb2 {[%clk 0:00:02]} 61. Rxd6 {[%clk 0:00:32]}  a2 {[%clk 0:00:03]} 62. Rd1 {[%clk 0:00:32]}  Ka3 {[%clk 0:00:03]} 63. Ra1 {[%clk 0:00:29]}  Rb1 {[%clk 0:00:02]} 64. Ke3 {[%clk 0:00:30]}  Rxa1 {[%clk 0:00:03]} 65. Kxe4 {[%clk 0:00:31]}  Re1+ {[%clk 0:00:03]} 66. Kd5 {[%clk 0:00:30]}  a1=Q {[%clk 0:00:03]} 67. Kd6 {[%clk 0:00:31]}  Rf1 {[%clk 0:00:03]} 68. Kd7 {[%clk 0:00:32]}  Rxf4 {[%clk 0:00:03]} 69. Ke7 {[%clk 0:00:33]}  Rxh4 {[%clk 0:00:03]} 70. Ke8 {[%clk 0:00:34]}  Re4+ {[%clk 0:00:02]} 71. Kf7 {[%clk 0:00:35]}  Qe5 {[%clk 0:00:01]} 72. Kxg6 {[%clk 0:00:36]} 1/2-1/2


[Site "https://www.chess.com"]

[Event "Titled Tuesday Blitz March 07 Late 2023"]
[White "tandercat"]
[Black "Smith, Garrett L"]
[BlackFideId "2024829"]
[WhiteElo "1907"]
[BlackElo "2261"]
[Result "1-0"]
[Round "06"]
[TimeControl "180+2"]
[Date "2023.03.07"]
[WhiteClock "0:01:32"]
[BlackClock "0:01:31"]

1. d4 {[%clk 0:03:00]}  Nf6 {[%clk 0:02:59]} 2. c4 {[%clk 0:03:01]}  g6 {[%clk 0:03:00]} 3. Nc3 {[%clk 0:03:01]}  d5 {[%clk 0:03:00]} 4. cxd5 {[%clk 0:03:00]}  Nxd5 {[%clk 0:03:01]} 5. e4 {[%clk 0:03:01]}  Nxc3 {[%clk 0:03:00]} 6. bxc3 {[%clk 0:03:02]}  Bg7 {[%clk 0:03:01]} 7. Bc4 {[%clk 0:03:02]}  c5 {[%clk 0:03:01]} 8. Ne2 {[%clk 0:03:02]}  Nc6 {[%clk 0:02:54]} 9. Be3 {[%clk 0:03:01]}  O-O {[%clk 0:02:54]} 10. O-O {[%clk 0:03:01]}  b6 {[%clk 0:02:54]} 11. Qd2 {[%clk 0:02:53]}  Bb7 {[%clk 0:02:52]} 12. h4 {[%clk 0:02:52]}  e6 {[%clk 0:02:49]} 13. Rad1 {[%clk 0:02:46]}  Na5 {[%clk 0:02:02]} 14. Bd3 {[%clk 0:02:43]}  cxd4 {[%clk 0:02:00]} 15. cxd4 {[%clk 0:02:42]}  Rc8 {[%clk 0:02:01]} 16. h5 {[%clk 0:02:34]}  Nc4 {[%clk 0:01:53]} 17. Bxc4 {[%clk 0:02:32]}  Rxc4 {[%clk 0:01:53]} 18. Bg5 {[%clk 0:02:20]}  Qd7 {[%clk 0:01:49]} 19. Bh6 {[%clk 0:02:14]}  Bxe4 {[%clk 0:01:42]} 20. Bxg7 {[%clk 0:02:07]}  Kxg7 {[%clk 0:01:43]} 21. Qf4 {[%clk 0:01:33]}  Bc2 {[%clk 0:01:31]} 22. h6+ {[%clk 0:01:32]} 1-0


[Site "https://www.chess.com"]

[Event "Titled Tuesday Blitz March 07 Late 2023"]
[White "Munoz Misselis, Nelson Carlos"]
[Black "Good, Daniel"]
[WhiteFideId "6601790"]
[BlackFideId "1302388"]
[WhiteElo "1749"]
[BlackElo "2256"]
[Result "1-0"]
[Round "06"]
[TimeControl "180+2"]
[Date "2023.03.07"]
[WhiteClock "0:00:13"]
[BlackClock "0:00:06"]

1. d4 {[%clk 0:03:00]}  Nf6 {[%clk 0:02:55]} 2. c4 {[%clk 0:02:59]}  g6 {[%clk 0:02:55]} 3. Nc3 {[%clk 0:02:57]}  Bg7 {[%clk 0:02:56]} 4. Nf3 {[%clk 0:02:57]}  d6 {[%clk 0:02:56]} 5. e3 {[%clk 0:02:58]}  O-O {[%clk 0:02:57]} 6. Be2 {[%clk 0:02:58]}  Nc6 {[%clk 0:02:39]} 7. O-O {[%clk 0:02:57]}  e5 {[%clk 0:02:39]} 8. a3 {[%clk 0:02:56]}  a5 {[%clk 0:02:32]} 9. Bd2 {[%clk 0:02:54]}  e4 {[%clk 0:02:25]} 10. Ne1 {[%clk 0:02:54]}  Re8 {[%clk 0:02:25]} 11. g3 {[%clk 0:02:33]}  h5 {[%clk 0:02:21]} 12. Ng2 {[%clk 0:02:33]}  Bh3 {[%clk 0:02:21]} 13. Re1 {[%clk 0:02:32]}  Ne7 {[%clk 0:01:59]} 14. Nf4 {[%clk 0:02:31]}  Bg4 {[%clk 0:01:59]} 15. Bxg4 {[%clk 0:02:26]}  hxg4 {[%clk 0:01:59]} 16. Kg2 {[%clk 0:02:26]}  Nf5 {[%clk 0:01:59]} 17. Rh1 {[%clk 0:02:20]}  Qd7 {[%clk 0:01:57]} 18. Ncd5 {[%clk 0:02:13]}  Nh7 {[%clk 0:01:55]} 19. Qxg4 {[%clk 0:02:06]}  c6 {[%clk 0:01:23]} 20. Qe2 {[%clk 0:01:24]}  cxd5 {[%clk 0:01:22]} 21. cxd5 {[%clk 0:01:25]}  Ng5 {[%clk 0:01:14]} 22. h4 {[%clk 0:01:24]}  Nf3 {[%clk 0:01:13]} 23. Bc3 {[%clk 0:01:24]}  Bf6 {[%clk 0:00:53]} 24. h5 {[%clk 0:01:18]}  g5 {[%clk 0:00:52]} 25. Nh3 {[%clk 0:01:16]}  Kg7 {[%clk 0:00:44]} 26. Ng1 {[%clk 0:01:05]}  g4 {[%clk 0:00:33]} 27. Rc1 {[%clk 0:00:47]}  Rh8 {[%clk 0:00:33]} 28. Qc2 {[%clk 0:00:42]}  Qe7 {[%clk 0:00:23]} 29. Ne2 {[%clk 0:00:40]}  Bg5 {[%clk 0:00:23]} 30. Nf4 {[%clk 0:00:39]}  Bxf4 {[%clk 0:00:23]} 31. exf4 {[%clk 0:00:31]}  Rh6 {[%clk 0:00:18]} 32. Rcd1 {[%clk 0:00:26]}  Rah8 {[%clk 0:00:17]} 33. Bxa5 {[%clk 0:00:25]}  Rxh5 {[%clk 0:00:18]} 34. Rxh5 {[%clk 0:00:23]}  Rxh5 {[%clk 0:00:18]} 35. Rh1 {[%clk 0:00:21]}  Rxh1 {[%clk 0:00:12]} 36. Kxh1 {[%clk 0:00:21]}  Qf6 {[%clk 0:00:11]} 37. Kg2 {[%clk 0:00:19]}  Ne1+ {[%clk 0:00:10]} 38. Bxe1 {[%clk 0:00:18]}  Qxd4 {[%clk 0:00:09]} 39. Bc3 {[%clk 0:00:17]}  f6 {[%clk 0:00:04]} 40. Bxd4 {[%clk 0:00:17]}  Nxd4 {[%clk 0:00:05]} 41. Qxe4 {[%clk 0:00:17]}  Nf3 {[%clk 0:00:05]} 42. Qe7+ {[%clk 0:00:17]}  Kg6 {[%clk 0:00:05]} 43. Qe4+ {[%clk 0:00:12]}  f5 {[%clk 0:00:05]} 44. Qxf3 {[%clk 0:00:11]}  gxf3+ {[%clk 0:00:05]} 45. Kxf3 {[%clk 0:00:12]}  Kf6 {[%clk 0:00:05]} 46. g4 {[%clk 0:00:12]}  fxg4+ {[%clk 0:00:05]} 47. Kxg4 {[%clk 0:00:13]}  b5 {[%clk 0:00:06]} 48. b3 {[%clk 0:00:13]}  Kf7 {[%clk 0:00:06]} 49. a4 {[%clk 0:00:13]}  Kf6 {[%clk 0:00:06]} 1-0


[Site "https://www.chess.com"]

[Event "Titled Tuesday Blitz March 07 Late 2023"]
[White "Comas Fabrego, Lluis"]
[Black "Pasti, Aron"]
[WhiteFideId "2200325"]
[BlackFideId "785857"]
[WhiteElo "2523"]
[BlackElo "2173"]
[Result "0-1"]
[Round "06"]
[TimeControl "180+2"]
[Date "2023.03.07"]
[WhiteClock "0:00:02"]
[BlackClock "0:00:14"]

1. Nf3 {[%clk 0:03:00]}  d5 {[%clk 0:02:59]} 2. d4 {[%clk 0:02:59]}  Nf6 {[%clk 0:02:59]} 3. c4 {[%clk 0:02:59]}  e6 {[%clk 0:02:58]} 4. cxd5 {[%clk 0:02:59]}  exd5 {[%clk 0:02:58]} 5. Nc3 {[%clk 0:02:59]}  Be7 {[%clk 0:02:58]} 6. Qc2 {[%clk 0:02:58]}  c6 {[%clk 0:02:57]} 7. Bg5 {[%clk 0:02:58]}  h6 {[%clk 0:02:56]} 8. Bh4 {[%clk 0:02:57]}  O-O {[%clk 0:02:55]} 9. e3 {[%clk 0:02:57]}  Bg4 {[%clk 0:02:55]} 10. Ne5 {[%clk 0:02:56]}  Bh5 {[%clk 0:02:49]} 11. Bd3 {[%clk 0:02:55]}  Nbd7 {[%clk 0:02:46]} 12. h3 {[%clk 0:02:39]}  Nxe5 {[%clk 0:02:44]} 13. dxe5 {[%clk 0:02:38]}  Nd7 {[%clk 0:02:41]} 14. Bg3 {[%clk 0:02:26]}  Bh4 {[%clk 0:02:29]} 15. Bf4 {[%clk 0:01:54]}  Bg5 {[%clk 0:02:26]} 16. Bh2 {[%clk 0:01:50]}  Re8 {[%clk 0:02:21]} 17. f4 {[%clk 0:01:35]}  Bh4+ {[%clk 0:02:17]} 18. g3 {[%clk 0:01:35]}  Be7 {[%clk 0:02:16]} 19. g4 {[%clk 0:01:22]}  Bh4+ {[%clk 0:02:08]} 20. Kf1 {[%clk 0:01:20]}  Bg6 {[%clk 0:01:14]} 21. Bxg6 {[%clk 0:01:17]}  fxg6 {[%clk 0:01:15]} 22. Qxg6 {[%clk 0:01:17]}  Qb6 {[%clk 0:01:08]} 23. Nd1 {[%clk 0:00:54]}  Qb5+ {[%clk 0:01:02]} 24. Kg1 {[%clk 0:00:42]}  Nxe5 {[%clk 0:00:18]} 25. Qc2 {[%clk 0:00:14]}  Nf3+ {[%clk 0:00:17]} 26. Kg2 {[%clk 0:00:15]}  Ne1+ {[%clk 0:00:17]} 27. Rxe1 {[%clk 0:00:13]}  Bxe1 {[%clk 0:00:17]} 28. Bg3 {[%clk 0:00:09]}  Bxg3 {[%clk 0:00:17]} 29. Kxg3 {[%clk 0:00:10]}  Qb6 {[%clk 0:00:16]} 30. Kf3 {[%clk 0:00:07]}  Qb4 {[%clk 0:00:15]} 31. Nc3 {[%clk 0:00:05]}  d4 {[%clk 0:00:14]} 32. exd4 {[%clk 0:00:02]}  Qxd4 {[%clk 0:00:14]} 0-1


[Site "https://www.chess.com"]

[Event "Titled Tuesday Blitz March 07 Late 2023"]
[White "Kho, Darrell"]
[Black "MunichMouse"]
[WhiteFideId "1019317"]
[WhiteElo "2164"]
[BlackElo "2294"]
[Result "0-1"]
[Round "06"]
[TimeControl "180+2"]
[Date "2023.03.07"]
[WhiteClock "0:00:01"]
[BlackClock "0:00:27"]

1. e4 {[%clk 0:03:00]}  c5 {[%clk 0:03:00]} 2. Nf3 {[%clk 0:03:00]}  d6 {[%clk 0:03:00]} 3. d4 {[%clk 0:03:01]}  cxd4 {[%clk 0:03:01]} 4. Qxd4 {[%clk 0:03:01]}  Nc6 {[%clk 0:03:00]} 5. Qe3 {[%clk 0:03:01]}  g6 {[%clk 0:02:59]} 6. Be2 {[%clk 0:03:01]}  Bg7 {[%clk 0:02:59]} 7. O-O {[%clk 0:02:58]}  e6 {[%clk 0:02:58]} 8. Rd1 {[%clk 0:02:50]}  Qc7 {[%clk 0:02:56]} 9. c4 {[%clk 0:02:31]}  Nge7 {[%clk 0:02:55]} 10. Nc3 {[%clk 0:02:31]}  a6 {[%clk 0:02:54]} 11. b3 {[%clk 0:02:26]}  O-O {[%clk 0:02:52]} 12. Bb2 {[%clk 0:02:26]}  Ne5 {[%clk 0:02:43]} 13. Rac1 {[%clk 0:02:06]}  Nxf3+ {[%clk 0:02:39]} 14. Bxf3 {[%clk 0:02:03]}  Nc6 {[%clk 0:02:40]} 15. Nd5 {[%clk 0:01:49]}  Qd8 {[%clk 0:02:29]} 16. Bxg7 {[%clk 0:01:47]}  Kxg7 {[%clk 0:02:30]} 17. Nc3 {[%clk 0:01:38]}  Qe7 {[%clk 0:02:26]} 18. Na4 {[%clk 0:01:33]}  Rb8 {[%clk 0:02:19]} 19. Nb6 {[%clk 0:01:18]}  e5 {[%clk 0:02:08]} 20. Nd5 {[%clk 0:00:48]}  Qd8 {[%clk 0:02:08]} 21. Qb6 {[%clk 0:00:36]}  Nd4 {[%clk 0:02:04]} 22. Rc3 {[%clk 0:00:26]}  Be6 {[%clk 0:02:01]} 23. Qxd8 {[%clk 0:00:21]}  Rbxd8 {[%clk 0:01:57]} 24. Rd2 {[%clk 0:00:21]}  Bxd5 {[%clk 0:01:54]} 25. exd5 {[%clk 0:00:18]}  f5 {[%clk 0:01:53]} 26. Bd1 {[%clk 0:00:18]}  Kf6 {[%clk 0:01:51]} 27. Kf1 {[%clk 0:00:17]}  Rc8 {[%clk 0:01:51]} 28. Rh3 {[%clk 0:00:16]}  Rf7 {[%clk 0:01:50]} 29. f4 {[%clk 0:00:16]}  b5 {[%clk 0:01:45]} 30. fxe5+ {[%clk 0:00:15]}  dxe5 {[%clk 0:01:45]} 31. Be2 {[%clk 0:00:11]}  Rfc7 {[%clk 0:01:41]} 32. cxb5 {[%clk 0:00:10]}  axb5 {[%clk 0:01:40]} 33. a4 {[%clk 0:00:08]}  bxa4 {[%clk 0:00:47]} 34. bxa4 {[%clk 0:00:09]}  Rd8 {[%clk 0:00:47]} 35. Rb2 {[%clk 0:00:01]}  Nxe2 {[%clk 0:00:30]} 36. Kxe2 {[%clk 0:00:01]}  e4 {[%clk 0:00:27]} 0-1


[Site "https://www.chess.com"]

[Event "Titled Tuesday Blitz March 07 Late 2023"]
[White "Hakobyan, Aram"]
[Black "Keymer, Vincent"]
[WhiteFideId "13306677"]
[BlackFideId "12940690"]
[WhiteElo "2563"]
[BlackElo "2651"]
[Result "1/2-1/2"]
[Round "07"]
[TimeControl "180+2"]
[Date "2023.03.07"]
[WhiteClock "0:00:07"]
[BlackClock "0:00:04"]

1. e4 {[%clk 0:03:00]}  c6 {[%clk 0:02:56]} 2. d4 {[%clk 0:03:00]}  d5 {[%clk 0:02:57]} 3. e5 {[%clk 0:03:00]}  Bf5 {[%clk 0:02:57]} 4. Nf3 {[%clk 0:03:01]}  e6 {[%clk 0:02:57]} 5. Be2 {[%clk 0:03:01]}  c5 {[%clk 0:02:58]} 6. c3 {[%clk 0:03:02]}  Nc6 {[%clk 0:02:58]} 7. O-O {[%clk 0:03:02]}  Bg6 {[%clk 0:02:57]} 8. a3 {[%clk 0:03:00]}  Be7 {[%clk 0:02:57]} 9. b4 {[%clk 0:02:59]}  c4 {[%clk 0:02:57]} 10. a4 {[%clk 0:02:58]}  a5 {[%clk 0:02:57]} 11. b5 {[%clk 0:02:57]}  Nb8 {[%clk 0:02:58]} 12. Ba3 {[%clk 0:02:55]}  Nd7 {[%clk 0:02:48]} 13. Nbd2 {[%clk 0:02:49]}  Bxa3 {[%clk 0:02:46]} 14. Rxa3 {[%clk 0:02:50]}  h5 {[%clk 0:02:46]} 15. Qc1 {[%clk 0:02:47]}  h4 {[%clk 0:02:45]} 16. h3 {[%clk 0:02:47]}  Ne7 {[%clk 0:02:43]} 17. Re1 {[%clk 0:02:45]}  Nb6 {[%clk 0:02:40]} 18. Bd1 {[%clk 0:02:46]}  Nf5 {[%clk 0:02:37]} 19. Nf1 {[%clk 0:02:44]}  Qe7 {[%clk 0:02:36]} 20. Ra2 {[%clk 0:02:40]}  O-O-O {[%clk 0:02:28]} 21. Bc2 {[%clk 0:02:40]}  Rh5 {[%clk 0:02:26]} 22. N1h2 {[%clk 0:02:40]}  Kb8 {[%clk 0:02:25]} 23. Ng4 {[%clk 0:02:40]}  Rdh8 {[%clk 0:02:23]} 24. Qf4 {[%clk 0:02:38]}  Ka7 {[%clk 0:02:18]} 25. Qd2 {[%clk 0:02:18]}  Qd8 {[%clk 0:02:16]} 26. Qc1 {[%clk 0:02:18]}  Qe7 {[%clk 0:02:16]} 27. Kh2 {[%clk 0:02:09]}  Bh7 {[%clk 0:02:09]} 28. Ng1 {[%clk 0:02:07]}  Nh6 {[%clk 0:01:55]} 29. Nxh6 {[%clk 0:01:51]}  Rxh6 {[%clk 0:01:54]} 30. Bxh7 {[%clk 0:01:49]}  R6xh7 {[%clk 0:01:53]} 31. Nf3 {[%clk 0:01:35]}  Rh5 {[%clk 0:01:49]} 32. Qa3 {[%clk 0:01:35]}  Qxa3 {[%clk 0:01:45]} 33. Rxa3 {[%clk 0:01:36]}  Kb8 {[%clk 0:01:45]} 34. Ra2 {[%clk 0:01:34]}  Kc7 {[%clk 0:01:45]} 35. Re3 {[%clk 0:01:30]}  Kd7 {[%clk 0:01:42]} 36. Kg1 {[%clk 0:01:29]}  f5 {[%clk 0:01:35]} 37. Nh2 {[%clk 0:01:13]}  g5 {[%clk 0:01:15]} 38. f3 {[%clk 0:01:13]}  Rg8 {[%clk 0:01:15]} 39. Kf1 {[%clk 0:01:14]}  Rh6 {[%clk 0:01:15]} 40. Ree2 {[%clk 0:01:13]}  Rhg6 {[%clk 0:01:15]} 41. Rf2 {[%clk 0:01:13]}  R8g7 {[%clk 0:01:14]} 42. Ke1 {[%clk 0:01:14]}  Kc7 {[%clk 0:01:14]} 43. Kd1 {[%clk 0:01:14]}  Nc8 {[%clk 0:01:10]} 44. Kc1 {[%clk 0:01:12]}  Ne7 {[%clk 0:01:10]} 45. Kb2 {[%clk 0:01:00]}  Ng8 {[%clk 0:01:10]} 46. Ka3 {[%clk 0:01:00]}  Nh6 {[%clk 0:01:09]} 47. Rab2 {[%clk 0:00:54]}  Kd7 {[%clk 0:01:03]} 48. b6 {[%clk 0:00:52]}  g4 {[%clk 0:01:04]} 49. fxg4 {[%clk 0:00:51]}  fxg4 {[%clk 0:01:04]} 50. Nxg4 {[%clk 0:00:47]}  Nxg4 {[%clk 0:01:05]} 51. hxg4 {[%clk 0:00:47]}  Rxg4 {[%clk 0:01:06]} 52. Rb5 {[%clk 0:00:38]}  Rxg2 {[%clk 0:00:49]} 53. Rxg2 {[%clk 0:00:39]}  Rxg2 {[%clk 0:00:49]} 54. Rc5 {[%clk 0:00:40]}  Rc2 {[%clk 0:00:48]} 55. Rc7+ {[%clk 0:00:41]}  Kd8 {[%clk 0:00:48]} 56. Rxb7 {[%clk 0:00:39]}  Rxc3+ {[%clk 0:00:49]} 57. Ka2 {[%clk 0:00:40]}  h3 {[%clk 0:00:45]} 58. Rh7 {[%clk 0:00:34]}  Kc8 {[%clk 0:00:37]} 59. Rh6 {[%clk 0:00:30]}  Rd3 {[%clk 0:00:32]} 60. Rxe6 {[%clk 0:00:30]}  Rd2+ {[%clk 0:00:28]} 61. Ka3 {[%clk 0:00:29]}  Rxd4 {[%clk 0:00:28]} 62. Rh6 {[%clk 0:00:29]}  Rd3+ {[%clk 0:00:28]} 63. Ka2 {[%clk 0:00:29]}  Re3 {[%clk 0:00:28]} 64. e6 {[%clk 0:00:28]}  Kb7 {[%clk 0:00:27]} 65. Kb2 {[%clk 0:00:27]}  d4 {[%clk 0:00:27]} 66. Rh4 {[%clk 0:00:24]}  d3 {[%clk 0:00:14]} 67. Kc3 {[%clk 0:00:22]}  Rxe6 {[%clk 0:00:07]} 68. Rxh3 {[%clk 0:00:18]}  Rc6 {[%clk 0:00:08]} 69. Rh5 {[%clk 0:00:17]}  Kxb6 {[%clk 0:00:08]} 70. Rb5+ {[%clk 0:00:18]}  Ka6 {[%clk 0:00:09]} 71. Rd5 {[%clk 0:00:19]}  Rc8 {[%clk 0:00:06]} 72. Rd6+ {[%clk 0:00:19]}  Kb7 {[%clk 0:00:06]} 73. Rd5 {[%clk 0:00:20]}  Kb6 {[%clk 0:00:06]} 74. Rb5+ {[%clk 0:00:20]}  Ka6 {[%clk 0:00:05]} 75. Rd5 {[%clk 0:00:20]}  Rc6 {[%clk 0:00:04]} 76. Rd7 {[%clk 0:00:17]}  Kb6 {[%clk 0:00:02]} 77. Rd5 {[%clk 0:00:18]}  Kb7 {[%clk 0:00:03]} 78. Rxa5 {[%clk 0:00:17]}  Kc7 {[%clk 0:00:03]} 79. Rd5 {[%clk 0:00:17]}  Rd6 {[%clk 0:00:03]} 80. Rc5+ {[%clk 0:00:17]}  Kb6 {[%clk 0:00:03]} 81. Rb5+ {[%clk 0:00:13]}  Kc6 {[%clk 0:00:03]} 82. Rb2 {[%clk 0:00:08]}  Kc5 {[%clk 0:00:02]} 83. Rb5+ {[%clk 0:00:07]}  Kc6 {[%clk 0:00:03]} 84. Rb2 {[%clk 0:00:08]}  Rd5 {[%clk 0:00:03]} 85. a5 {[%clk 0:00:05]}  Kc5 {[%clk 0:00:02]} 86. a6 {[%clk 0:00:05]}  Rd7 {[%clk 0:00:02]} 87. Ra2 {[%clk 0:00:05]}  Ra7 {[%clk 0:00:02]} 88. Ra4 {[%clk 0:00:04]}  Kb5 {[%clk 0:00:02]} 89. Rb4+ {[%clk 0:00:05]}  Kxa6 {[%clk 0:00:01]} 90. Rxc4 {[%clk 0:00:05]}  Rd7 {[%clk 0:00:02]} 91. Kd2 {[%clk 0:00:05]}  Kb5 {[%clk 0:00:02]} 92. Rc3 {[%clk 0:00:06]}  Kb4 {[%clk 0:00:03]} 93. Rxd3 {[%clk 0:00:07]}  Rxd3+ {[%clk 0:00:04]} 94. Kxd3 {[%clk 0:00:07]} 1/2-1/2


[Site "https://www.chess.com"]

[Event "Titled Tuesday Blitz March 07 Late 2023"]
[White "Kamsky, Gata"]
[Black "Carlsen, Magnus"]
[WhiteFideId "2000024"]
[BlackFideId "1503014"]
[WhiteElo "2666"]
[BlackElo "2852"]
[Result "0-1"]
[Round "07"]
[TimeControl "180+2"]
[Date "2023.03.07"]
[WhiteClock "0:00:03"]
[BlackClock "0:00:06"]

1. e4 {[%clk 0:03:00]}  c5 {[%clk 0:02:57]} 2. Nf3 {[%clk 0:03:00]}  Nc6 {[%clk 0:02:55]} 3. d4 {[%clk 0:02:59]}  cxd4 {[%clk 0:02:55]} 4. Nxd4 {[%clk 0:03:00]}  e6 {[%clk 0:02:52]} 5. Nb5 {[%clk 0:02:57]}  d6 {[%clk 0:02:51]} 6. c4 {[%clk 0:02:58]}  Nf6 {[%clk 0:02:47]} 7. N1c3 {[%clk 0:02:58]}  a6 {[%clk 0:02:42]} 8. Nd4 {[%clk 0:02:58]}  d5 {[%clk 0:02:09]} 9. cxd5 {[%clk 0:02:42]}  exd5 {[%clk 0:02:07]} 10. exd5 {[%clk 0:02:43]}  Nxd5 {[%clk 0:02:02]} 11. Nxc6 {[%clk 0:02:42]}  bxc6 {[%clk 0:02:03]} 12. Bd2 {[%clk 0:02:01]}  Bd6 {[%clk 0:02:01]} 13. Be2 {[%clk 0:01:58]}  O-O {[%clk 0:02:01]} 14. O-O {[%clk 0:01:58]}  Rb8 {[%clk 0:01:58]} 15. Nxd5 {[%clk 0:01:51]}  cxd5 {[%clk 0:01:51]} 16. Bc3 {[%clk 0:01:51]}  Bc5 {[%clk 0:01:47]} 17. Bd4 {[%clk 0:01:37]}  Bxd4 {[%clk 0:01:19]} 18. Qxd4 {[%clk 0:01:36]}  Qb6 {[%clk 0:01:20]} 19. Qxb6 {[%clk 0:01:34]}  Rxb6 {[%clk 0:01:20]} 20. b3 {[%clk 0:01:29]}  Be6 {[%clk 0:01:20]} 21. Rac1 {[%clk 0:01:27]}  Rc8 {[%clk 0:01:17]} 22. Rxc8+ {[%clk 0:01:24]}  Bxc8 {[%clk 0:01:18]} 23. Rc1 {[%clk 0:01:21]}  Be6 {[%clk 0:01:16]} 24. Rc5 {[%clk 0:01:20]}  Kf8 {[%clk 0:01:16]} 25. Kf1 {[%clk 0:01:14]}  Ke7 {[%clk 0:01:16]} 26. Ke1 {[%clk 0:01:15]}  Kd6 {[%clk 0:01:10]} 27. Ra5 {[%clk 0:01:15]}  Bc8 {[%clk 0:01:10]} 28. Kd2 {[%clk 0:01:15]}  g5 {[%clk 0:01:09]} 29. h3 {[%clk 0:01:05]}  Ke5 {[%clk 0:01:07]} 30. Bf3 {[%clk 0:01:01]}  Be6 {[%clk 0:01:04]} 31. Be2 {[%clk 0:01:01]}  Bc8 {[%clk 0:01:04]} 32. Bf3 {[%clk 0:01:01]}  Rd6 {[%clk 0:01:02]} 33. Be2 {[%clk 0:00:48]}  h6 {[%clk 0:00:53]} 34. Bd3 {[%clk 0:00:39]}  Rf6 {[%clk 0:00:44]} 35. Ke3 {[%clk 0:00:38]}  Rc6 {[%clk 0:00:45]} 36. g3 {[%clk 0:00:36]}  Bxh3 {[%clk 0:00:33]} 37. f4+ {[%clk 0:00:35]}  gxf4+ {[%clk 0:00:34]} 38. gxf4+ {[%clk 0:00:36]}  Kd6 {[%clk 0:00:35]} 39. Rxa6 {[%clk 0:00:35]}  Rxa6 {[%clk 0:00:34]} 40. Bxa6 {[%clk 0:00:35]}  h5 {[%clk 0:00:34]} 41. b4 {[%clk 0:00:32]}  h4 {[%clk 0:00:33]} 42. a4 {[%clk 0:00:25]}  Bf5 {[%clk 0:00:31]} 43. a5 {[%clk 0:00:19]}  h3 {[%clk 0:00:29]} 44. Kf2 {[%clk 0:00:19]}  d4 {[%clk 0:00:20]} 45. Bb7 {[%clk 0:00:18]}  d3 {[%clk 0:00:14]} 46. b5 {[%clk 0:00:14]}  h2 {[%clk 0:00:10]} 47. Bf3 {[%clk 0:00:11]}  d2 {[%clk 0:00:08]} 48. a6 {[%clk 0:00:03]}  d1=Q {[%clk 0:00:06]} 0-1


[Site "https://www.chess.com"]